bitfinex-derivatives/quotes_SOLF0:USTF0_20250404
["timestamp","ask_amount","ask_price","bid_price","bid_amount"]
[1743763694940,2.19,115.78,115.72,100.0]
[1743763695332,2.19,115.78,115.72,62.0]
[1743763695737,8.64,115.75,115.73,8.6411]
[1743763696039,0.05493445,115.77,115.74,0.05651598]
[1743763696739,0.05493445,115.77,115.74,19.37661864]
[1743763697341,0.05493445,115.77,115.75,8.6393]
[1743763697742,0.05493445,115.77,115.74,0.05651598]
[1743763698444,38.05493445,115.77,115.74,0.05651598]
[1743763698641,8.6399,115.75,115.74,0.05651598]
[1743763698836,19.32010266,115.76,115.72,62.0]
[1743763699035,19.32010266,115.76,115.69,38.0]
[1743763699240,2.2459,115.75,115.68,2.1819]
[1743763699439,2.2459,115.75,115.69,19.32010266]
[1743763699640,8.6416,115.73,115.71,8.6426]
[1743763699842,2.2459,115.75,115.71,8.6426]
[1743763700035,0.06410894,115.73,115.69,57.32010266]
[1743763700239,0.06410894,115.73,115.71,19.32010266]
[1743763700538,0.06410894,115.73,115.69,57.32010266]
[1743763700539,0.06410894,115.73,115.72,8.6422]
[1743763701641,46.6388,115.77,115.74,8.6403]
[1743763702038,46.6388,115.77,115.75,62.0]
[1743763702237,8.6392,115.76,115.75,62.0]
[1743763702639,38.0,115.77,115.75,62.0]
[1743763702842,46.70079564,115.77,115.75,62.0]
[1743763703846,38.06199564,115.77,115.75,62.0]
[1743763704235,8.6392,115.76,115.75,62.0]
[1743763704840,46.70089564,115.77,115.75,62.0]
[1743763705045,0.06199564,115.77,115.76,8.6392]
[1743763705444,26.17100266,115.84,115.76,38.0]
[1743763705742,6.8509,115.84,115.8,8.6356]
[1743763705946,8.6344,115.83,115.77,19.32010266]
[1743763706248,8.6344,115.83,115.8,8.6357]
[1743763706448,8.6344,115.83,115.77,19.32010266]
[1743763706743,0.06258083,115.83,115.8,0.05659872]
[1743763706944,40.2553,115.87,115.8,0.05659872]
[1743763707246,0.06003217,115.83,115.79,57.32010266]
[1743763707442,0.06003217,115.83,115.82,0.0577432]
[1743763707642,0.06003217,115.83,115.82,8.6924432]
[1743763707946,1.72607232,115.87,115.82,38.0577432]
[1743763708134,1.72607232,115.87,115.84,8.6328]
[1743763708337,1.72607232,115.87,115.83,19.32010266]
[1743763708751,1.72607232,115.87,115.84,8.6325]
[1743763709147,10.41401034,115.87,115.84,8.69464791]
[1743763709644,1.78291034,115.87,115.84,0.06214791]
[1743763709849,8.6318,115.86,115.84,0.06214791]
[1743763710143,1.78291034,115.87,115.84,0.06214791]
[1743763710347,8.6325,115.85,115.84,0.06214791]
[1743763710545,1.78291034,115.87,115.84,62.06214791]
[1743763710850,10.41421034,115.87,115.84,70.69524791]
[1743763711243,1.78291034,115.87,115.84,62.06214791]
[1743763711849,8.6321,115.86,115.84,62.06214791]
[1743763712344,10.41421034,115.87,115.84,70.69494791]
[1743763712650,1.78291034,115.87,115.84,62.06214791]
[1743763713154,1.78291034,115.87,115.85,8.6321]
[1743763713549,1.78291034,115.87,115.84,62.06214791]
[1743763713751,57.30010266,115.94,115.85,57.30010266]
[1743763714054,59.62580266,115.94,115.87,19.32010266]
[1743763714248,8.6272,115.93,115.87,19.32010266]
[1743763714444,40.3057,115.94,115.87,19.32010266]
[1743763714644,2.3257,115.94,115.87,19.32010266]
[1743763714844,10.952,115.94,115.87,19.32010266]
[1743763715045,0.06327834,115.92,115.89,0.05445398]
[1743763715248,0.06327834,115.92,115.91,8.628]
[1743763715546,278.09389318,115.96,115.91,8.628]
[1743763715547,278.09389318,115.96,115.91,19.32010266]
[1743763715745,278.09389318,115.96,115.91,30.82988187]
[1743763715952,278.09389318,115.96,115.94,8.6256]
[1743763716253,278.09389318,115.96,115.91,30.82988187]
[1743763716452,278.09389318,115.96,115.9,4.5304]
[1743763716453,278.09389318,115.96,115.93,30.82988187]
[1743763716850,278.15051464,115.96,115.92,0.05749133]
[1743763717555,278.15051464,115.96,115.95,8.625]
[1743763718254,278.15051464,115.96,115.94,8.68217646]
[1743763718456,37.96,115.95,115.94,8.68217646]
[1743763719249,278.15051464,115.96,115.95,8.625]
[1743763721549,278.15051464,115.96,115.95,70.625]
[1743763722050,333.71267182,115.99,115.98,8.6228]
[1743763722249,333.71267182,115.99,115.98,46.5628]
[1743763723449,319.74507182,115.99,115.98,46.5628]
[1743763724255,306.73167182,115.99,115.98,46.5628]
[1743763724456,279.99347182,115.99,115.98,46.5628]
[1743763724655,279.99347182,115.99,115.97,0.06040412]
[1743763725450,279.99347182,115.99,115.98,62.0]
[1743763725650,279.99347182,115.99,115.97,0.06040412]
[1743763725855,279.99347182,115.99,115.97,8.68360412]
[1743763726256,279.99347182,115.99,115.98,8.6228]
[1743763726553,279.99347182,115.99,115.97,0.06040412]
[1743763727556,282.37107182,115.99,115.91,30.82988187]
[1743763727753,282.37107182,115.99,115.91,68.74988187]
[1743763728450,290.99377182,115.99,115.91,68.74988187]
[1743763728655,282.37107182,115.99,115.92,62.0]
[1743763728855,0.0593486,115.96,115.94,0.05452792]
[1743763729055,0.0593486,115.96,115.94,8.68022792]
[1743763729947,0.0593486,115.96,115.94,0.05452792]
[1743763730455,8.6840486,115.96,115.94,0.05452792]
[1743763731846,0.0593486,115.96,115.94,0.05452792]
[1743763732051,0.0593486,115.96,115.94,62.05452792]
[1743763733055,0.0593486,115.96,115.94,0.05452792]
[1743763733257,8.6840486,115.96,115.94,0.05452792]
[1743763733456,0.0593486,115.96,115.94,0.05452792]
[1743763733858,0.0593486,115.96,115.95,8.625]
[1743763735265,279.99347182,115.99,115.98,8.6228]
[1743763735462,279.99347182,115.99,115.98,46.5228]
[1743763735955,279.99347182,115.99,115.94,0.6085]
[1743763736260,288.61567182,115.99,115.95,0.05718769]
[1743763736460,0.05951675,115.98,115.95,0.05718769]
[1743763736661,0.05951675,115.98,115.96,8.6243]
[1743763737161,0.05951675,115.98,115.97,8.6236]
[1743763737763,0.05951675,115.98,115.95,0.05718769]
[1743763738156,0.05951675,115.98,115.97,8.6236]
[1743763739165,0.05951675,115.98,115.97,70.6236]
[1743763740263,279.99347182,115.99,115.98,8.6228]
[1743763741160,279.99347182,115.99,115.97,8.6232]
[1743763741361,279.99347182,115.99,115.97,0.05748789]
[1743763742175,288.61587182,115.99,115.97,0.05748789]
[1743763743269,279.99347182,115.99,115.95,298.59682015]
[1743763743563,279.99347182,115.99,115.96,62.0]
[1743763743968,279.99347182,115.99,115.97,8.6232]
[1743763744369,279.99347182,115.99,115.97,8.68626333]
[1743763744559,279.99347182,115.99,115.97,0.06306333]
[1743763744764,317.87347182,115.99,115.96,62.0]
[1743763744966,8.6236,115.97,115.96,62.0]
[1743763745162,279.99347182,115.99,115.96,62.0]
[1743763745558,8.6232,115.98,115.96,62.0]
[1743763745771,279.99347182,115.99,115.95,298.59682015]
[1743763745969,8.6236,115.97,115.96,0.06322751]
[1743763746163,37.88,115.97,115.95,295.02942015]
[1743763746367,37.88,115.97,115.95,51.54242015]
[1743763746568,46.5041,115.97,115.95,51.54242015]
[1743763746764,0.05872924,115.98,115.95,113.54242015]
[1743763747269,0.05872924,115.98,115.97,8.6236]
[1743763747664,279.99347182,115.99,115.96,37.88]
[1743763747860,279.99347182,115.99,115.96,46.5037]
[1743763748068,279.99347182,115.99,115.95,113.60819199]
[1743763748069,288.61597182,115.99,115.95,113.60819199]
[1743763748265,279.99347182,115.99,115.96,37.88]
[1743763748667,280.05238072,115.99,115.96,37.88]
[1743763750466,280.05238072,115.99,115.96,68.70988187]
[1743763750675,3.18381787,116.01,115.98,30.82988187]
[1743763750866,3.18381787,116.01,115.99,37.88]
[1743763751171,3.18381787,116.01,116.0,8.6213]
[1743763751374,3.18381787,116.01,115.97,335.4317]
[1743763751764,0.06028199,116.0,115.99,8.6218]
[1743763752368,9.986e-05,116.01,116.0,8.6213]
[1743763752673,42.4392,116.08,115.99,427.02606605]
[1743763752867,27.3698707,116.15,115.99,427.02606605]
[1743763752868,1.4998707,116.15,116.05,8.6172]
[1743763753067,30.82988187,116.13,116.04,37.88]
[1743763753370,8.6135,116.11,116.03,68.70988187]
[1743763753575,37.88,116.14,116.07,0.05956526]
[1743763753576,0.05976506,116.1,116.07,0.05956526]
[1743763753871,0.05976506,116.1,116.08,62.0]
[1743763754073,0.05976506,116.1,116.09,8.6146]
[1743763754478,6.506e-05,116.1,116.09,39.44448187]
[1743763754772,15.4188,116.18,116.09,30.82988187]
[1743763755071,15.4188,116.18,116.1,37.86]
[1743763755276,6.8105,116.18,116.13,8.6113]
[1743763755476,6.8105,116.18,116.1,37.86]
[1743763755676,8.6091,116.17,116.12,8.6123]
[1743763755872,0.05473025,116.15,116.13,0.05979033]
[1743763756267,37.86,116.14,116.13,0.05979033]
[1743763756877,37.86,116.14,116.13,8.67149033]
[1743763757375,37.86,116.14,116.13,62.05979033]
[1743763757965,46.48,116.14,116.08,298.18908205]
[1743763758167,37.86,116.14,116.08,298.18908205]
[1743763758568,37.86,116.14,116.11,8.6126]
[1743763758773,37.84,116.17,116.09,30.82988187]
[1743763758965,46.4491,116.17,116.13,8.6112]
[1743763759167,0.05825679,116.14,116.13,8.6112]
[1743763760668,46.4468,116.2,116.17,8.6083]
[1743763760867,37.84,116.2,116.18,62.0]
[1743763761373,8.6072,116.19,116.18,62.0]
[1743763761775,37.84,116.2,116.18,62.0]
[1743763761965,0.06171233,116.2,116.18,62.0]
[1743763762376,0.06171233,116.2,116.19,8.6072]
[1743763762576,0.06171233,116.2,116.18,62.0]
[1743763762776,0.06171233,116.2,116.17,0.0582966]
[1743763763074,8.608,116.18,116.17,0.0582966]
[1743763763477,46.4276,116.19,116.17,0.0582966]
[1743763763667,37.82,116.19,116.17,0.0582966]
[1743763764774,8.608,116.18,116.17,0.0582966]
[1743763765273,8.6073,116.19,116.17,0.0582966]
[1743763765768,37.88171233,116.2,116.17,0.0582966]
[1743763765974,8.608,116.18,116.17,0.0582966]
[1743763766183,37.88171233,116.2,116.17,0.0582966]
[1743763766479,8.6079,116.19,116.17,0.0582966]
[1743763766879,8.608,116.18,116.17,0.0582966]
[1743763767281,37.88171233,116.2,116.17,0.0582966]
[1743763768181,8.6072,116.19,116.17,0.0582966]
[1743763768680,0.06171233,116.2,116.17,0.0582966]
[1743763768881,8.66881233,116.2,116.17,8.6666966]
[1743763769684,0.06171233,116.2,116.17,0.0582966]
[1743763770084,8.66851233,116.2,116.17,8.6668966]
[1743763770282,0.06171233,116.2,116.17,0.0582966]
[1743763770785,0.06171233,116.2,116.18,8.6074]
[1743763771087,37.86171233,116.2,116.17,0.0582966]
[1743763771387,8.608,116.18,116.17,0.0582966]
[1743763772289,8.6076,116.19,116.17,0.0582966]
[1743763772885,46.46861233,116.2,116.17,0.0582966]
[1743763773085,37.86171233,116.2,116.17,0.0582966]
[1743763773880,8.608,116.18,116.17,0.0582966]
[1743763774486,8.6102,116.15,116.14,62.0]
[1743763774788,33.16478187,116.19,116.12,10.24836]
[1743763774990,37.8,116.18,116.12,10.24836]
[1743763775282,37.8,116.18,116.12,1.63596]
[1743763775490,30.82988187,116.17,116.12,1.63596]
[1743763775786,40.1622,116.18,116.12,1.63596]
[1743763775787,8.6117,116.13,116.12,1.63596]
[1743763776787,8.6124,116.12,116.11,0.06121374]
[1743763776989,8.6124,116.12,116.06,334.9011]
[1743763776990,37.78,116.12,116.06,13.0777]
[1743763777186,37.78,116.12,116.02,68.60988187]
[1743763777393,40.0317,116.12,116.02,75.30818187]
[1743763777693,30.82988187,116.11,116.03,62.0]
[1743763777894,8.6162,116.07,116.03,62.0]
[1743763778093,8.6162,116.07,116.06,0.06007665]
[1743763779492,8.6184,116.04,116.03,62.0]
[1743763779889,37.78,116.06,115.99,358.31618418]
[1743763780197,8.6203,116.02,115.99,358.31618418]
[1743763780690,8.68030679,116.02,115.99,358.37472685]
[1743763780895,8.6211,116.01,115.99,358.37472685]
[1743763781400,0.06000679,116.02,115.99,358.37472685]
[1743763781999,8.6213,116.0,115.99,358.37472685]
[1743763782792,8.6208,116.01,115.99,0.05854267]
[1743763783002,0.06000679,116.02,115.99,0.05854267]
[1743763783498,8.6213,116.0,115.99,0.05854267]
[1743763783998,46.4213,116.0,115.99,0.05854267]
[1743763789003,8.6236,115.97,115.96,62.0]
[1743763789297,68.62988187,115.97,115.9,4.3232]
[1743763789498,68.62988187,115.97,115.9,2.1627]
[1743763789696,8.6273,115.92,115.89,8.6292]
[1743763790197,8.68607025,115.92,115.9,8.6288]
[1743763790398,0.05877025,115.92,115.89,0.06592755]
[1743763790794,0.05877025,115.92,115.91,8.628]
[1743763790995,37.82,115.99,115.91,68.64988187]
[1743763791199,2.1716,116.0,115.95,8.625]
[1743763791401,330.76,116.01,115.94,37.82]
[1743763791702,330.76,116.01,115.94,46.4454]
[1743763792200,0.06181478,115.99,115.96,0.0567482]
[1743763792707,8.6229,115.98,115.96,0.0567482]
[1743763793204,8.6236,115.97,115.96,0.0567482]
[1743763793594,0.06181478,115.99,115.96,0.0567482]
[1743763794303,8.68431478,115.99,115.96,8.6806482]
[1743763794900,0.06181478,115.99,115.97,8.623]
[1743763795103,0.06181478,115.99,115.97,37.82]
[1743763795502,0.06181478,115.99,115.97,46.4433]
[1743763795701,0.06181478,115.99,115.98,62.0]
[1743763797101,0.06181478,115.99,115.98,70.6228]
[1743763797306,0.06181478,115.99,115.98,62.0]
[1743763799803,8.68391478,115.99,115.98,62.0]
[1743763802405,37.8,116.05,115.98,62.0]
[1743763802811,8.6215,116.0,115.98,70.6225]
[1743763803006,37.8,116.05,115.98,62.0]
[1743763803212,42.311,116.07,115.98,62.0]
[1743763803511,8.6195,116.03,116.01,0.06277915]
[1743763804216,0.05521054,116.04,116.01,0.06277915]
[1743763805309,8.6196,116.03,116.01,0.06277915]
[1743763805516,0.05521054,116.04,116.01,0.06277915]
[1743763806416,37.85521054,116.04,116.01,0.06277915]
[1743763807213,30.82988187,116.03,116.01,7.915e-05]
[1743763807818,8.6198,116.02,116.01,7.915e-05]
[1743763811516,8.62,116.02,115.88,330.92]
[1743763811720,30.82988187,115.98,115.89,6.7986]
[1743763811913,30.82988187,115.96,115.89,6.7986]
[1743763812217,30.82988187,115.94,115.89,4.5517]
[1743763812419,8.6295,115.89,115.88,298.18908205]
[1743763812721,46.4095,115.89,115.88,298.18908205]
[1743763812916,46.4095,115.89,115.88,285.08968205]
[1743763813123,46.4095,115.89,115.88,70.02812554]
[1743763814223,8.6303,115.88,115.87,0.06549093]
[1743763814423,30.82988187,115.88,115.82,2.2442]
[1743763814819,30.82988187,115.88,115.8,4.5161]
[1743763815020,30.82988187,115.86,115.8,4.5161]
[1743763815220,8.6342,115.83,115.8,4.5161]
[1743763815416,68.62988187,115.86,115.8,4.5161]
[1743763815618,0.05963164,115.83,115.8,2.33124951]
[1743763815823,0.05963164,115.83,115.8,0.06184951]
[1743763816526,37.85963164,115.83,115.8,0.06184951]
[1743763816824,30.82988187,115.82,115.8,0.06184951]
[1743763817220,39.46988187,115.82,115.67,348.4305]
[1743763817421,30.82988187,115.8,115.7,30.82988187]
[1743763817623,37.8,115.79,115.77,8.6384]
[1743763818220,37.8,115.79,115.72,68.62988187]
[1743763818426,37.85982449,115.79,115.77,0.05751954]
[1743763818723,37.86446857,115.79,115.77,0.06053641]
[1743763819222,39.46758187,115.78,115.77,0.06053641]
[1743763819428,30.82988187,115.78,115.73,1.72816037]
[1743763819828,8.6406,115.75,115.73,1.72816037]
[1743763820528,0.06264208,115.75,115.73,1.78366183]
[1743763821633,0.06264208,115.75,115.73,10.42506183]
[1743763822333,8.70264208,115.75,115.73,1.78366183]
[1743763822824,0.06264208,115.75,115.73,1.78366183]
[1743763825024,8.6407,115.74,115.73,1.78366183]
[1743763825224,0.06264208,115.75,115.73,1.78366183]
[1743763825532,0.06264208,115.75,115.74,8.6407]
[1743763825829,0.06264208,115.75,115.73,0.05550146]
[1743763826734,37.82,115.78,115.75,8.6396]
[1743763827135,46.4578,115.78,115.75,8.6396]
[1743763827541,37.82,115.78,115.71,37.82]
[1743763827728,46.52062165,115.78,115.75,0.06545172]
[1743763827934,46.458,115.78,115.75,0.06545172]
[1743763828137,46.51959499,115.78,115.75,0.06545172]
[1743763828439,37.88159499,115.78,115.75,0.06545172]
[1743763828638,68.71147686,115.78,115.75,0.06545172]
[1743763828936,8.6392,115.76,115.75,0.06545172]
[1743763829635,39.46908187,115.76,115.75,5.172e-05]
[1743763830235,8.6419,115.73,115.7,8.6432]
[1743763830739,46.4611,115.74,115.69,6.6697]
[1743763830933,37.82,115.74,115.69,6.6697]
[1743763831133,37.82,115.74,115.71,8.6424]
[1743763831330,46.4612,115.74,115.71,8.6424]
[1743763831534,37.87652953,115.74,115.71,0.06509107]
[1743763831937,46.51782953,115.74,115.71,8.70799107]
[1743763832834,37.87652953,115.74,115.71,0.06509107]
[1743763833031,68.7064114,115.74,115.71,0.06509107]
[1743763833335,37.87652953,115.74,115.71,0.06509107]
[1743763833738,8.6422,115.72,115.71,0.06509107]
[1743763834238,8.6441,115.7,115.68,62.0]
[1743763834434,46.4641,115.7,115.68,62.0]
[1743763834640,37.82,115.7,115.67,8.6456]
[1743763834833,37.82,115.7,115.69,8.6444]
[1743763835035,37.82,115.7,115.65,2.1859]
[1743763835438,0.05834486,115.69,115.66,0.05439909]
[1743763835635,0.05834486,115.69,115.65,2.1859]
[1743763835837,0.05834486,115.69,115.66,0.05439909]
[1743763836043,37.82,115.74,115.66,0.05439909]
[1743763836244,37.82,115.74,115.65,2.1859]
[1743763836637,68.64988187,115.74,115.65,2.1859]
[1743763836937,8.6433,115.71,115.68,8.6446]
[1743763837140,0.05956656,115.71,115.68,0.05901282]
[1743763837539,0.05956656,115.71,115.69,62.0]
[1743763837935,8.70276656,115.71,115.69,62.0]
[1743763838644,0.05956656,115.71,115.7,8.6437]
[1743763839242,0.05956656,115.71,115.69,70.644]
[1743763839445,0.05956656,115.71,115.69,62.0]
[1743763839743,8.6437,115.7,115.69,62.0]
[1743763840038,0.05956656,115.71,115.69,62.0]
[1743763840343,8.70316656,115.71,115.69,62.0]
[1743763840544,0.05956656,115.71,115.69,62.0]
[1743763840845,8.70266656,115.71,115.69,62.0]
[1743763841146,8.70266656,115.71,115.69,70.644]
[1743763841344,0.05956656,115.71,115.69,62.0]
[1743763841745,8.6437,115.7,115.69,62.0]
[1743763842242,37.87956656,115.71,115.68,0.05901282]
[1743763842442,30.82988187,115.7,115.59,30.82988187]
[1743763842642,30.82988187,115.68,115.6,2.1835]
[1743763842843,8.6475,115.65,115.6,2.1835]
[1743763843243,35.27048187,115.7,115.6,2.1835]
[1743763843448,8.6448,115.69,115.61,68.64988187]
[1743763843649,0.05538024,115.66,115.64,0.05373113]
[1743763843841,8.6464,115.67,115.61,68.64988187]
[1743763844145,0.05523041,115.66,115.64,0.05373113]
[1743763844350,37.82,115.68,115.64,8.648]
[1743763844650,0.05587876,115.66,115.64,0.05373113]
[1743763844843,37.82,115.71,115.66,8.6463]
[1743763845043,37.82,115.71,115.65,2.2674]
[1743763845242,37.82,115.71,115.66,62.0]
[1743763845947,0.0602016,115.7,115.67,0.06186402]
[1743763846847,0.0602016,115.7,115.67,37.88186402]
[1743763847351,0.0602016,115.7,115.69,8.6444]
[1743763847560,37.82,115.75,115.67,37.88186402]
[1743763847759,37.82,115.75,115.67,37.82]
[1743763847960,30.82988187,115.74,115.65,40.0874]
[1743763848355,37.82,115.75,115.66,30.82988187]
[1743763848659,0.0562751,115.72,115.69,0.05776677]
[1743763848858,37.82,115.8,115.73,8.641]
[1743763849156,37.82,115.8,115.71,37.82]
[1743763849361,37.82,115.8,115.72,70.6415]
[1743763849654,37.82,115.8,115.72,62.0]
[1743763849856,30.82988187,115.79,115.72,62.0]
[1743763850058,8.6392,115.76,115.75,8.449e-05]
[1743763850253,46.4592,115.76,115.75,8.449e-05]
[1743763852761,8.70487946,115.77,115.75,8.449e-05]
[1743763852951,0.06627946,115.77,115.75,8.449e-05]
[1743763853458,8.6392,115.76,115.75,8.449e-05]
[1743763853859,0.06627946,115.77,115.75,8.449e-05]
[1743763854160,8.70507946,115.77,115.75,8.449e-05]
[1743763854361,0.06627946,115.77,115.75,8.449e-05]
[1743763854555,8.6392,115.76,115.75,8.449e-05]
[1743763859157,8.6433,115.71,115.69,2.3541]
[1743763859561,8.6433,115.71,115.69,10.9984]
[1743763859763,8.6433,115.71,115.69,2.3541]
[1743763859961,37.8,115.73,115.67,4.6276]
[1743763860163,30.82988187,115.7,115.64,6.8129]
[1743763860359,30.3059,115.72,115.59,62.0]
[1743763860562,30.82988187,115.65,115.57,6.8129]
[1743763860762,37.8,115.64,115.57,6.8129]
[1743763861264,37.8,115.64,115.57,15.4659]
[1743763861459,0.06210853,115.62,115.59,0.0589575]
[1743763861664,37.8,115.7,115.63,8.6483]
[1743763861865,68.62988187,115.7,115.63,8.6483]
[1743763862259,68.62988187,115.7,115.62,8.6493]
[1743763862460,68.62988187,115.7,115.61,37.8]
[1743763862659,8.6457,115.68,115.62,8.6495]
[1743763862865,0.0642389,115.67,115.64,0.05605515]
[1743763863264,8.6467,115.66,115.64,0.05605515]
[1743763863459,0.0642389,115.67,115.64,0.05605515]
[1743763863660,0.0642389,115.67,115.64,62.05605515]
[1743763863863,8.6471,115.66,115.64,62.05605515]
[1743763864162,0.0642389,115.67,115.64,62.05605515]
[1743763864466,8.6468,115.66,115.64,62.05605515]
[1743763864868,0.0642389,115.67,115.64,0.05605515]
[1743763864869,8.6474,115.65,115.64,0.05605515]
[1743763865068,8.6474,115.65,115.64,5.515e-05]
[1743763865762,8.647,115.66,115.64,5.515e-05]
[1743763865963,37.8642389,115.67,115.64,5.515e-05]
[1743763866361,8.6474,115.65,115.64,5.515e-05]
[1743763866757,37.8642389,115.67,115.64,5.515e-05]
[1743763866966,0.0642389,115.67,115.64,5.515e-05]
[1743763867465,8.6474,115.65,115.64,5.515e-05]
[1743763869369,68.62988187,115.66,115.58,62.0]
[1743763869567,30.82988187,115.62,115.58,62.0]
[1743763869766,8.6539,115.57,115.54,331.82]
[1743763869961,68.62988187,115.62,115.53,6.8522]
[1743763870168,8.6538,115.57,115.53,44.6522]
[1743763870364,8.6538,115.57,115.54,8.6553]
[1743763870568,0.06082046,115.59,115.56,0.0555564]
[1743763870763,37.8,115.59,115.56,0.0555564]
[1743763870963,37.86190642,115.59,115.56,5.64e-05]
[1743763871175,30.82988187,115.58,115.56,5.64e-05]
[1743763871365,37.86190642,115.59,115.56,5.64e-05]
[1743763871871,8.6534,115.57,115.56,5.64e-05]
[1743763877171,30.82988187,115.58,115.5,62.0]
[1743763877369,30.82988187,115.55,115.47,6.8522]
[1743763877677,37.8,115.54,115.47,6.8522]
[1743763877877,30.82988187,115.53,115.47,6.8522]
[1743763878075,8.6606,115.48,115.45,37.8]
[1743763878375,68.62988187,115.51,115.45,0.05669908]
[1743763878575,0.06643548,115.48,115.45,0.05669908]
[1743763878778,0.06643548,115.48,115.42,37.8]
[1743763878976,0.06643548,115.48,115.45,0.05669908]
[1743763879178,8.72728456,115.46,115.45,0.05669908]
[1743763879576,8.6617,115.46,115.45,0.05669908]
[1743763880279,0.05498797,115.47,115.45,0.05669908]
[1743763881777,8.6617,115.46,115.45,0.05669908]
[1743763882882,46.4817,115.46,115.45,9.908e-05]
[1743763883077,46.48,115.46,115.37,6.9387]
[1743763883283,30.82988187,115.43,115.37,6.9387]
[1743763883583,8.6677,115.38,115.37,4.5779]
[1743763883776,37.82,115.42,115.37,66.5779]
[1743763883973,8.6666,115.4,115.37,75.2461]
[1743763884180,0.06279601,115.41,115.37,62.0]
[1743763884486,8.72859601,115.41,115.38,8.6673]
[1743763884782,0.06279601,115.41,115.37,62.0]
[1743763885084,8.6667,115.4,115.37,62.0]
[1743763885385,0.06279601,115.41,115.37,62.0]
[1743763886174,8.6677,115.38,115.37,62.0]
[1743763886373,68.64988187,115.42,115.34,4.652]
[1743763886579,0.06588484,115.39,115.34,4.652]
[1743763886777,8.6688,115.37,115.34,13.3222]
[1743763887183,0.06105245,115.37,115.34,4.652]
[1743763887682,37.84,115.42,115.34,4.71305245]
[1743763887979,37.84,115.42,115.35,68.66988187]
[1743763888179,37.84,115.42,115.34,4.652]
[1743763888180,68.66988187,115.42,115.34,4.652]
[1743763888485,8.6678,115.38,115.35,8.6695]
[1743763888679,0.06155057,115.39,115.37,0.06105245]
[1743763888881,8.6677,115.38,115.37,0.06105245]
[1743763889479,8.6677,115.38,115.37,62.06105245]
[1743763889779,37.88155057,115.39,115.34,4.652]
[1743763890285,8.6699,115.35,115.34,4.652]
[1743763890589,37.82,115.39,115.34,4.652]
[1743763890884,8.6692,115.36,115.35,62.0]
[1743763891081,30.89159511,115.38,115.3,37.84]
[1743763891276,37.84,115.37,115.3,2.3092]
[1743763891478,8.6719,115.33,115.3,10.9825]
[1743763891680,0.05928626,115.35,115.3,2.3092]
[1743763891875,37.84,115.37,115.3,2.3092]
[1743763892083,0.05486285,115.33,115.3,2.3092]
[1743763892278,0.05486285,115.33,115.27,332.26]
[1743763892477,8.6746,115.29,115.26,10.8804]
[1743763892680,37.84,115.34,115.26,4.5741]
[1743763892889,0.06365284,115.29,115.27,37.84]
[1743763893080,37.84,115.34,115.27,68.66988187]
[1743763893280,68.66988187,115.34,115.26,4.5741]
[1743763893481,8.6744,115.3,115.26,4.5741]
[1743763893789,68.66988187,115.34,115.26,4.5741]
[1743763893987,8.6726,115.32,115.29,8.6742]
[1743763894282,0.06369389,115.31,115.3,62.0]
[1743763894485,68.66988187,115.38,115.3,64.2695]
[1743763895080,8.6707,115.34,115.31,8.6726]
[1743763895587,8.72949464,115.34,115.31,8.73782939]
[1743763895787,0.05879464,115.34,115.32,8.6721]
[1743763895989,0.05879464,115.34,115.32,2.2622]
[1743763896190,8.72999464,115.34,115.32,2.2622]
[1743763897186,0.05879464,115.34,115.32,2.2622]
[1743763897587,8.6714,115.33,115.32,2.2622]
[1743763898590,0.05879464,115.34,115.32,2.2622]
[1743763898591,8.72989464,115.34,115.32,2.2622]
[1743763898991,0.05879464,115.34,115.32,10.9341]
[1743763899292,370.32,115.41,115.32,10.9422]
[1743763899493,8.6685,115.37,115.32,2.2622]
[1743763899692,37.86,115.41,115.32,33.09208187]
[1743763900090,8.6673,115.39,115.36,8.6689]
[1743763900394,0.06611943,115.38,115.36,37.86]
[1743763900689,37.86,115.37,115.32,2.2622]
[1743763900882,37.86,115.37,115.36,8.42e-05]
[1743763901082,8.6692,115.36,115.33,8.6711]
[1743763901283,19.5234,115.44,115.32,2.2622]
[1743763901488,30.82988187,115.4,115.32,2.2622]